fUSD/lending_fUSD_20241223
["ID","MTS","AMOUNT","RATE_DAILY","PERIOD"]
[346377377,1734924639757,-549.52,0.00019397,2]
[346377378,1734924639767,-500.0,0.00019397,2]
[346377380,1734924639776,-500.0,0.00019397,2]
[346377382,1734924639785,-500.0,0.00019397,2]
[346377383,1734924639794,-1026.0,0.00019397,2]
[346377384,1734924639803,-516.47,0.00019397,2]
[346377385,1734924639812,-500.0,0.00019397,2]
[346377386,1734924639825,-1205.93,0.00019397,2]
[346377387,1734924639834,-500.0,0.00019397,2]
[346377388,1734924639843,-500.0,0.00019397,2]
[346377389,1734924639852,-1108.97,0.00019397,2]
[346377390,1734924639861,-500.0,0.00019397,2]
[346377391,1734924639871,-500.0,0.00019397,2]
[346377392,1734924639880,-500.0,0.00019397,2]
[346377393,1734924639889,-662.47,0.00019397,2]
[346377394,1734924639898,-500.0,0.00019397,2]
[346377395,1734924639907,-662.71,0.00019397,2]
[346377396,1734924639916,-500.0,0.00019397,2]
[346377397,1734924639925,-500.0,0.00019397,2]
[346377398,1734924639934,-1067.98,0.00019397,2]
[346377399,1734924639943,-500.0,0.00019397,2]
[346377400,1734924639952,-500.0,0.00019397,2]
[346377401,1734924639960,-546.84,0.00019397,2]
[346377402,1734924639970,-500.0,0.00019397,2]
[346377403,1734924639979,-500.0,0.00019397,2]
[346377404,1734924639988,-500.0,0.00019397,2]
[346377405,1734924639996,-500.0,0.00019397,2]
[346377407,1734924640005,-3655.02,0.00019397,2]
[346377408,1734924640015,-1121.86,0.00019397,2]
[346377409,1734924640024,-500.0,0.00019397,2]
[346377410,1734924640033,-500.0,0.00019397,2]
[346377411,1734924640042,-601.11,0.00019397,2]
[346377412,1734924640051,-500.0,0.00019397,2]
[346377413,1734924640060,-2149.21,0.00019397,2]
[346377414,1734924640071,-1371.61,0.00019397,2]
[346377415,1734924640080,-915.37,0.00019397,2]
[346377416,1734924640088,-541.68,0.00019397,2]
[346377417,1734924640098,-919.13,0.00019397,2]
[346377418,1734924640107,-8344.37,0.00019397,2]
[346377419,1734924640116,-1090.37,0.00019397,2]
[346377420,1734924640124,-510.81564804,0.00019397,2]
[346377421,1734924640134,-1287.91,0.00019397,2]
[346377422,1734924640142,-656.53,0.00019397,2]
[346377423,1734924640151,-853.9,0.00019397,2]
[346377424,1734924640160,-1234.67,0.00019397,2]
[346377425,1734924640170,-500.0,0.00019397,2]
[346377426,1734924640179,-500.0,0.00019397,2]
[346377427,1734924640188,-5971.22,0.00019397,2]
[346377428,1734924640197,-928.35,0.00019397,2]
[346377429,1734924640206,-1356.8,0.00019397,2]
[346377430,1734924640215,-500.0,0.00019397,2]
[346377431,1734924640224,-3956.5,0.00019397,2]
[346377432,1734924640233,-821.8,0.00019397,2]
[346377433,1734924640242,-500.0,0.00019397,2]
[346377434,1734924640251,-500.0,0.00019397,2]
[346377435,1734924640260,-1631.82,0.00019397,2]
[346377436,1734924640269,-500.0,0.00019397,2]
[346377437,1734924640278,-1355.05,0.00019397,2]
[346377438,1734924640287,-880.76,0.00019397,2]
[346377439,1734924640296,-1472.24,0.00019397,2]
[346377440,1734924640305,-2087.77,0.00019397,2]
[346377441,1734924640314,-500.0,0.00019397,2]
[346377442,1734924640325,-500.0,0.00019397,2]
[346377443,1734924640334,-1249.85,0.00019397,2]
[346377444,1734924640343,-2886.36,0.00019397,2]
[346377445,1734924640352,-500.0,0.00019397,2]
[346377446,1734924640361,-1250.36,0.00019397,2]
[346377447,1734924640370,-665.46,0.00019397,2]
[346377448,1734924640379,-5871.01,0.00019397,2]
[346377449,1734924640388,-842.57,0.00019397,2]
[346377450,1734924640397,-870.13,0.00019397,2]
[346377451,1734924640406,-500.0,0.00019397,2]
[346377452,1734924640415,-505.56445309,0.00019397,2]
[346377453,1734924640424,-500.0,0.00019397,2]
[346377454,1734924640433,-1619.31,0.00019397,2]
[346377455,1734924640442,-500.0,0.00019397,2]
[346377456,1734924640452,-1144.57,0.00019397,2]
[346377457,1734924640461,-1661.3,0.00019397,2]
[346377458,1734924640470,-7092.57,0.00019397,2]
[346377459,1734924640479,-1060.37,0.00019397,2]
[346377460,1734924640488,-1194.2,0.00019397,2]
[346377461,1734924640497,-500.0,0.00019397,2]
[346377462,1734924640506,-500.0,0.00019397,2]
[346377463,1734924640515,-1522.12,0.00019397,2]
[346377464,1734924640524,-500.0,0.00019397,2]
[346377465,1734924640536,-1248.15,0.00019397,2]
[346377466,1734924640545,-2244.25,0.00019397,2]
[346377467,1734924640554,-1314.48,0.00019397,2]
[346377468,1734924640563,-839.19,0.00019397,2]
[346377469,1734924640575,-1436.21,0.00019397,2]
[346377470,1734924640585,-1685.91,0.00019397,2]
[346377472,1734924640595,-2011.33,0.00019397,2]
[346377473,1734924640604,-1817.72,0.00019397,2]
[346377476,1734924640614,-1599.56,0.00019397,2]
[346377477,1734924640624,-675.89,0.00019397,2]
[346377479,1734924640634,-500.0,0.00019397,2]
[346377481,1734924640643,-4785.58,0.00019397,2]
[346377484,1734924640653,-668.83,0.00019397,2]
[346377486,1734924640662,-500.0,0.00019397,2]
[346377488,1734924640671,-500.0,0.00019397,2]
[346377489,1734924640680,-3828.81,0.00019397,2]
[346377491,1734924640689,-1388.36,0.00019397,2]
[346377493,1734924640699,-1793.82,0.00019397,2]
[346377495,1734924640708,-500.0,0.00019397,2]
[346377497,1734924640717,-4258.45,0.00019397,2]
[346377499,1734924640726,-1891.21,0.00019397,2]
[346377501,1734924640735,-535.87,0.00019397,2]
[346377503,1734924640744,-1858.76,0.00019397,2]
[346377505,1734924640754,-546.03,0.00019397,2]
[346377507,1734924640763,-1163.73,0.00019397,2]
[346377509,1734924640772,-1382.64,0.00019397,2]
[346377511,1734924640780,-2379.78,0.00019397,2]
[346377513,1734924640790,-500.0,0.00019397,2]
[346377515,1734924640799,-500.0,0.00019397,2]
[346377517,1734924640808,-1518.23,0.00019397,2]
[346377520,1734924640817,-1223.59,0.00019397,2]
[346377521,1734924640830,-500.0,0.00019397,2]
[346377524,1734924640839,-3253.6,0.00019397,2]
[346377525,1734924640848,-500.0,0.00019397,2]
[346377528,1734924640859,-4242.29,0.00019397,2]
[346377529,1734924640869,-1578.79,0.00019397,2]
[346377531,1734924640878,-4061.09,0.00019397,2]
[346377533,1734924640888,-819.96,0.00019397,2]
[346377535,1734924640898,-866.21,0.00019397,2]
[346377537,1734924640907,-988.06,0.00019397,2]
[346377539,1734924640916,-3906.25,0.00019397,2]
[346377541,1734924640926,-500.0,0.00019398,2]
[346377543,1734924640935,-500.0,0.00019398,2]
[346377545,1734924640944,-245.17951132,0.00019398,2]
[346377547,1734924640954,-500.0,0.00019398,2]
[346377549,1734924640963,-500.0,0.00019398,2]
[346377551,1734924640972,-500.0,0.00019398,2]
[346377553,1734924640982,-500.0,0.00019398,2]
[346377555,1734924640991,-500.0,0.00019398,2]
[346377557,1734924641000,-613.3647883,0.00019398,2]
[346377559,1734924641009,-500.0,0.00019398,2]
[346377561,1734924641019,-500.0,0.00019398,2]
[346377563,1734924641028,-500.0,0.00019398,2]
[346377565,1734924641036,-500.0,0.00019398,2]
[346377567,1734924641046,-500.0,0.00019398,2]
[346377569,1734924641055,-500.0,0.00019398,2]
[346377571,1734924641064,-500.0,0.00019398,2]
[346377573,1734924641075,-557.53946061,0.00019398,2]
[346377575,1734924641084,-500.0,0.00019398,2]
[346377577,1734924641093,-500.0,0.00019398,2]
[346377579,1734924641102,-500.0,0.00019398,2]
[346377581,1734924641111,-264.59657454,0.00019398,2]
[346377583,1734924641120,-500.0,0.00019398,2]
[346377585,1734924641129,-500.0,0.00019398,2]
[346377587,1734924641138,-500.0,0.00019398,2]
[346377589,1734924641147,-500.0,0.00019398,2]
[346377591,1734924641156,-500.0,0.00019398,2]
[346377593,1734924641165,-500.0,0.00019398,2]
[346377595,1734924641174,-506.19920074,0.00019398,2]
[346377597,1734924641183,-507.91239118,0.00019398,2]
[346377599,1734924641192,-500.0,0.00019398,2]
[346377601,1734924641201,-506.19283966,0.00019398,2]
[346377602,1734924641210,-500.0,0.00019398,2]
[346377604,1734924641219,-500.0,0.00019398,2]
[346377606,1734924641228,-500.0,0.00019398,2]
[346377608,1734924641238,-500.0,0.00019398,2]
[346377610,1734924641247,-500.0,0.00019398,2]
[346377613,1734924641256,-507.12966104,0.00019398,2]
[346377615,1734924641265,-482.37596671,0.00019398,2]
[346377616,1734924641275,-268.40650314,0.00019398,2]
[346377618,1734924641284,-503.91541415,0.00019398,2]
[346377621,1734924641294,-500.0,0.00019398,2]
[346377623,1734924641304,-500.0,0.00019398,2]
[346377625,1734924641313,-507.63899724,0.00019398,2]
[346377627,1734924641323,-500.0,0.00019398,2]
[346377629,1734924641332,-500.0,0.00019398,2]
[346377630,1734924641341,-500.0,0.00019398,2]
[346377633,1734924641350,-822.76,0.00019398,2]
[346377634,1734924641359,-500.0,0.00019398,2]
[346377637,1734924641368,-150.889704,0.00019398,2]
[346377638,1734924641377,-210.18659301,0.00019398,2]
[346377640,1734924641386,-509.51363024,0.00019398,2]
[346377642,1734924641395,-231.13417129,0.00019398,2]
[346377644,1734924641404,-500.0,0.00019398,2]
[346377646,1734924641413,-500.0,0.00019398,2]
[346377648,1734924641422,-156.58255097,0.00019398,2]
[346377650,1734924641431,-500.0,0.00019398,2]
[346377652,1734924641441,-500.0,0.00019398,2]
[346377654,1734924641450,-500.0,0.00019398,2]
[346377656,1734924641459,-507.52050143,0.00019398,2]
[346377658,1734924641468,-500.0,0.00019398,2]
[346377660,1734924641477,-500.0,0.00019398,2]
[346377662,1734924641486,-513.96975597,0.00019398,2]
[346377664,1734924641495,-500.0,0.00019398,2]
[346377666,1734924641504,-812.14,0.00019398,2]
[346377668,1734924641513,-500.0,0.00019398,2]
[346377670,1734924641522,-500.0,0.00019398,2]
[346377673,1734924641534,-539.31,0.00019398,2]
[346377675,1734924641544,-464.04466758,0.00019398,2]
[346377677,1734924641553,-500.0,0.00019398,2]
[346377679,1734924641562,-500.0,0.00019398,2]
[346377680,1734924641573,-500.0,0.00019398,2]
[346377682,1734924641583,-516.25309434,0.00019398,2]
[346377684,1734924641592,-500.0,0.00019398,2]
[346377686,1734924641601,-500.0,0.00019398,2]
[346377688,1734924641611,-500.0,0.00019398,2]
[346377690,1734924641621,-500.0,0.00019398,2]
[346377692,1734924641630,-505.93436737,0.00019398,2]
[346377694,1734924641640,-500.0,0.00019398,2]
[346377695,1734924641649,-500.0,0.00019398,2]
[346377696,1734924641658,-500.0,0.00019398,2]
[346377697,1734924641667,-500.0,0.00019398,2]
[346377698,1734924641676,-500.0,0.00019398,2]
[346377699,1734924641685,-500.0,0.00019398,2]
[346377700,1734924641694,-500.0,0.00019398,2]
[346377701,1734924641704,-663.33,0.00019398,2]
[346377702,1734924641713,-500.0,0.00019398,2]
[346377703,1734924641723,-500.0,0.00019398,2]
[346377704,1734924641732,-500.0,0.00019398,2]
[346377705,1734924641742,-500.0,0.00019398,2]
[346377706,1734924641751,-500.0,0.00019398,2]
[346377707,1734924641760,-500.0,0.00019398,2]
[346377708,1734924641769,-500.0,0.00019398,2]
[346377709,1734924641778,-831.09,0.00019398,2]
[346377710,1734924641788,-181.43460393,0.00019398,2]
[346377711,1734924641797,-470.57483402,0.00019398,2]
[346377712,1734924641806,-500.0,0.00019398,2]
[346377713,1734924641815,-500.0,0.00019398,2]
[346377714,1734924641826,-500.0,0.00019398,2]
[346377715,1734924641835,-500.0,0.00019398,2]
[346377716,1734924641845,-510.78419182,0.00019398,2]
[346377718,1734924641855,-500.0,0.00019398,2]
[346377719,1734924641863,-500.0,0.00019398,2]
[346377721,1734924641873,-538.60685838,0.00019398,2]
[346377723,1734924641882,-519.71938667,0.00019398,2]
[346377725,1734924641891,-500.0,0.00019398,2]
[346377727,1734924641899,-500.0,0.00019398,2]
[346377729,1734924641908,-192.00578482,0.00019398,2]
[346377731,1734924641917,-500.0,0.00019398,2]
[346377733,1734924641926,-500.0,0.00019398,2]
[346377735,1734924641935,-500.0,0.00019398,2]
[346377737,1734924641944,-500.0,0.00019398,2]
[346377739,1734924641954,-500.0,0.00019398,2]
[346377741,1734924641963,-500.0,0.00019398,2]
[346377743,1734924641972,-500.0,0.00019398,2]
[346377745,1734924641981,-500.0,0.00019398,2]
[346377747,1734924641990,-500.0,0.00019398,2]
[346377749,1734924641999,-500.0,0.00019398,2]
[346377751,1734924642008,-500.0,0.00019398,2]
[346377753,1734924642017,-1406.13,0.00019398,2]
[346377755,1734924642027,-500.0,0.00019398,2]
[346377757,1734924642036,-520.17134189,0.00019398,2]
[346377759,1734924642046,-500.0,0.00019398,2]
[346377761,1734924642056,-500.0,0.00019398,2]
[346377763,1734924642065,-517.79618821,0.00019398,2]
[346377765,1734924642076,-500.0,0.00019398,2]
[346377767,1734924642086,-500.0,0.00019398,2]
[346377769,1734924642095,-500.0,0.00019398,2]
[346377771,1734924642104,-500.0,0.00019398,2]
[346377773,1734924642113,-828.61,0.00019398,2]
[346377775,1734924642122,-749.66,0.00019398,2]
[346377777,1734924642131,-517.47621491,0.00019398,2]
[346377779,1734924642140,-500.0,0.00019398,2]
[346377781,1734924642149,-2000.0,0.00019398,15]
[346377783,1734924642159,-504.29050748,0.00019398,2]
[346377785,1734924642168,-500.0,0.00019398,2]
[346377787,1734924642177,-506.94171344,0.00019398,2]
[346377808,1734924642363,-436.56435157,0.00019398,2]
[346377810,1734924642373,-500.0,0.00019398,2]
[346377812,1734924642383,-726.26,0.00019398,2]
[346377814,1734924642392,-500.0,0.00019398,2]
[346377816,1734924642401,-982.1,0.00019398,2]
[346377818,1734924642410,-500.0,0.00019398,2]
[346377820,1734924642420,-500.0,0.00019398,2]
[346377822,1734924642429,-500.0,0.00019398,2]
[346377824,1734924642438,-500.0,0.00019398,2]
[346377826,1734924642447,-500.0,0.00019398,2]
[346377828,1734924642456,-500.0,0.00019398,2]
[346377830,1734924642466,-1041.14,0.00019398,2]
[346377832,1734924642475,-506.69367038,0.00019398,2]
[346377834,1734924642484,-500.0,0.00019398,2]
[346377836,1734924642494,-500.0,0.00019398,2]
[346377838,1734924642503,-500.0,0.00019398,2]
[346377840,1734924642512,-500.0,0.00019398,2]
[346377842,1734924642521,-500.0,0.00019398,2]
[346377844,1734924642532,-500.0,0.00019398,2]
[346377846,1734924642542,-500.0,0.00019398,2]
[346377848,1734924642551,-500.0,0.00019398,2]
[346377850,1734924642560,-507.43964572,0.00019398,2]
[346377852,1734924642573,-500.0,0.00019398,2]
[346377854,1734924642583,-500.0,0.00019398,2]
[346377856,1734924642595,-500.0,0.00019398,2]
[346377858,1734924642605,-500.0,0.00019398,2]
[346377859,1734924642614,-500.0,0.00019398,2]
[346377862,1734924642624,-625.94,0.00019398,2]
[346377864,1734924642634,-500.0,0.00019398,2]
[346377866,1734924642643,-500.0,0.00019398,2]
[346377868,1734924642652,-500.0,0.00019398,2]
[346377870,1734924642662,-500.0,0.00019398,2]
[346377871,1734924642671,-500.0,0.00019398,2]
[346377873,1734924642681,-500.0,0.00019398,2]
[346377875,1734924642690,-505.25924312,0.00019398,2]
[346377877,1734924642700,-641.41,0.00019398,2]
[346377879,1734924642711,-500.0,0.00019398,2]
[346377880,1734924642722,-500.0,0.00019398,2]
[346377881,1734924642732,-1158.8,0.00019398,2]
[346377882,1734924642742,-500.0,0.00019398,2]
[346377883,1734924642752,-3467.64,0.00019398,2]
[346377884,1734924642762,-538.08681926,0.00019398,2]
[346377885,1734924642772,-1146.9,0.00019398,2]
[346377886,1734924642782,-500.0,0.00019398,2]
[346377888,1734924642792,-500.0,0.00019398,2]
[346377890,1734924642801,-500.0,0.00019398,2]
[346377892,1734924642811,-500.0,0.00019398,2]
[346377894,1734924642824,-500.0,0.00019398,2]
[346377895,1734924642834,-500.0,0.00019398,2]
[346377896,1734924642844,-500.0,0.00019398,2]
[346377897,1734924642853,-500.0,0.00019398,2]
[346377898,1734924642865,-500.0,0.00019398,2]
[346377899,1734924642875,-501.7647614,0.00019398,2]
[346377900,1734924642884,-767.91,0.00019398,2]
[346377901,1734924642894,-500.0,0.00019398,2]
[346377902,1734924642903,-842.5,0.00019398,2]
[346377903,1734924642913,-500.0,0.00019398,2]
[346377904,1734924642922,-703.51,0.00019398,2]
[346377905,1734924642931,-1453.26,0.00019398,2]
[346377906,1734924642941,-500.0,0.00019398,2]
[346377907,1734924642951,-500.0,0.00019398,2]
[346377908,1734924642960,-2356.57,0.00019398,2]
[346377909,1734924642968,-500.0,0.00019398,2]
[346377910,1734924642978,-500.0,0.00019398,2]
[346377911,1734924642987,-506.81609514,0.00019398,2]
[346377912,1734924642996,-1706.26,0.00019398,2]
[346377913,1734924643006,-500.0,0.00019398,2]
[346377914,1734924643015,-505.7384103,0.00019398,2]
[346377915,1734924643024,-500.0,0.00019398,2]
[346377916,1734924643034,-500.0,0.00019398,2]
[346377917,1734924643043,-500.0,0.00019398,2]
[346377918,1734924643053,-500.0,0.00019398,2]
[346377919,1734924643063,-503.87306982,0.00019398,2]
[346377920,1734924643077,-500.0,0.00019398,2]
[346377921,1734924643086,-1342.84,0.00019398,2]
[346377922,1734924643095,-826.36,0.00019398,2]
[346377923,1734924643104,-500.0,0.00019398,2]
[346377924,1734924643114,-500.0,0.00019398,2]
[346377925,1734924643123,-292.37567739,0.00019398,2]
[346377926,1734924643132,-500.0,0.00019398,2]
[346377927,1734924643141,-981.33,0.00019398,2]
[346377928,1734924643151,-1781.78,0.00019398,2]
[346377929,1734924643160,-503.21143853,0.00019398,2]
[346377930,1734924643169,-81.45351305,0.00019398,2]
[346377932,1734924643498,-422.58065882,0.00019398,2]
[346377933,1734924643508,-500.0,0.00019398,2]
[346377934,1734924643517,-500.0,0.00019398,2]
[346377935,1734924643530,-475.88133771,0.00019398,2]
[346377936,1734924643541,-26.92124691,0.00019398,2]
[346377937,1734924643551,-500.0,0.00019398,2]
[346377938,1734924643561,-500.0,0.00019398,2]
[346377939,1734924643574,-500.0,0.00019398,2]
[346377940,1734924643583,-1620.4,0.00019398,2]
[346377941,1734924643592,-507.62725629,0.00019398,2]
[346377942,1734924643602,-500.0,0.00019398,2]
[346377943,1734924643611,-500.0,0.00019398,2]
[346377944,1734924643621,-500.0,0.00019398,2]
[346377945,1734924643630,-500.0,0.00019398,2]
[346377946,1734924643640,-500.0,0.00019398,2]
[346377947,1734924643650,-2773.46,0.00019398,2]
[346377948,1734924643659,-504.11470071,0.00019398,2]
[346377949,1734924643668,-3564.35,0.00019398,2]
[346377950,1734924643677,-500.0,0.00019398,2]
[346377951,1734924643686,-88.33632169,0.00019398,2]
[346377952,1734924643698,-415.15692566,0.00019398,2]
[346377953,1734924643707,-500.0,0.00019398,2]
[346377954,1734924643716,-501.55125334,0.00019398,2]
[346377955,1734924643726,-787.77260915,0.00019398,2]
[346377956,1734924643738,-1276.75000011,0.00019398,2]
[346377957,1734924643773,-1969.49,0.00019296,2]
[346377958,1734924643783,-15836.62739074,0.00019398,2]
[346377959,1734924643792,-500.0,0.00019398,2]
[346377960,1734924643802,-502.86780974,0.00019398,2]
[346377961,1734924643811,-500.0,0.00019398,2]
[346377962,1734924643820,-704.34,0.00019398,2]
[346377963,1734924643833,-500.0,0.00019398,2]
[346377964,1734924643842,-500.0,0.00019398,2]
[346377965,1734924643851,-505.17013396,0.00019398,2]
[346377966,1734924643861,-2214.89,0.00019398,2]
[346377967,1734924643870,-517.3955032,0.00019398,2]
[346377968,1734924643879,-501.36342469,0.00019398,2]
[346377969,1734924643889,-500.0,0.00019398,2]
[346377970,1734924643899,-500.0,0.00019398,2]
[346377971,1734924643907,-1269.79,0.00019398,2]
[346377972,1734924643916,-500.0,0.00019398,2]
[346377973,1734924643926,-500.0,0.00019398,2]
[346377974,1734924643935,-500.0,0.00019398,2]
[346377975,1734924643944,-500.0,0.00019398,2]
[346377976,1734924643954,-500.0,0.00019398,2]
[346377977,1734924643963,-500.0,0.00019398,2]
[346377978,1734924643972,-607.97,0.00019398,2]
[346377979,1734924643982,-947.85,0.00019398,2]
[346377980,1734924643991,-502.6933383,0.00019398,2]
[346377981,1734924644000,-505.03259398,0.00019398,2]
[346377982,1734924644010,-500.0,0.00019398,2]
[346377983,1734924644019,-500.0,0.00019398,2]
[346377984,1734924644028,-500.0,0.00019398,2]
[346377985,1734924644037,-500.0,0.00019398,2]
[346377986,1734924644047,-507.68039408,0.00019398,2]
[346377987,1734924644055,-504.29051318,0.00019398,2]
[346377988,1734924644065,-500.0,0.00019398,2]
[346377989,1734924644077,-501.62737106,0.00019398,2]
[346377990,1734924644086,-500.0,0.00019398,2]
[346377991,1734924644095,-576.41,0.00019398,2]
[346377992,1734924644104,-2481.99,0.00019398,2]
[346377993,1734924644113,-500.0,0.00019398,2]
[346377994,1734924644122,-500.0,0.00019398,2]
[346377995,1734924644131,-513.4105581,0.00019398,2]
[346377996,1734924644140,-13920.33,0.00019398,2]
[346377997,1734924644150,-500.0,0.00019398,2]
[346377998,1734924644159,-574.74,0.00019398,2]
[346377999,1734924644168,-827.71,0.00019398,2]
[346378000,1734924644177,-500.0,0.00019398,2]
[346378001,1734924644186,-510.24736023,0.00019398,2]
[346378002,1734924644195,-512.27392649,0.00019398,2]
[346378003,1734924644204,-500.0,0.00019398,2]
[346378004,1734924644213,-502.95096967,0.00019398,2]
[346378005,1734924644222,-895.63,0.00019398,2]
[346378006,1734924644231,-500.0,0.00019398,2]
[346378007,1734924644240,-508.85565619,0.00019398,2]
[346378008,1734924644250,-500.0,0.00019398,2]
[346378009,1734924644259,-503.43863896,0.00019398,2]
[346378010,1734924644268,-500.0,0.00019398,2]
[346378011,1734924644278,-500.0,0.00019398,2]
[346378012,1734924644287,-1143.26,0.00019398,2]
[346378013,1734924644296,-1796.56,0.00019398,2]
[346378014,1734924644305,-500.0,0.00019398,2]
[346378015,1734924644315,-500.0,0.00019398,2]
[346378016,1734924644326,-585.57,0.00019398,2]
[346378017,1734924644335,-1140.27,0.00019398,2]
[346378018,1734924644344,-504.43766124,0.00019398,2]
[346378019,1734924644352,-504.02212258,0.00019398,2]
[346378020,1734924644361,-504.03857432,0.00019398,2]
[346378021,1734924644370,-500.0,0.00019398,2]
[346378022,1734924644380,-500.0,0.00019398,2]
[346378023,1734924644389,-500.0,0.00019398,2]
[346378024,1734924644398,-500.0,0.00019398,2]
[346378025,1734924644407,-935.49,0.00019398,2]
[346378026,1734924644416,-500.0,0.00019398,2]
[346378027,1734924644425,-638.09,0.00019398,2]
[346378028,1734924644434,-500.0,0.00019398,2]
[346378029,1734924644443,-150.0,0.00019399,2]
[346378030,1734924644452,-402.9171662,0.00019399,2]
[346378031,1734924644461,-500.0,0.00019399,2]
[346378032,1734924644471,-504.0819485,0.00019399,2]
[346378033,1734924644532,-504.29396931,0.00019399,2]
[346378034,1734924644542,-369.41991172,0.00019399,2]
[346378035,1734924644551,-500.0,0.00019399,2]
[346378036,1734924644560,-500.0,0.00019399,2]
[346378037,1734924644571,-500.0,0.00019399,2]
[346378038,1734924644580,-500.0,0.00019399,2]
[346378039,1734924644589,-500.0,0.00019399,2]
[346378040,1734924644599,-500.0,0.00019399,2]
[346378041,1734924644610,-500.0,0.00019399,2]
[346378042,1734924644619,-239.35184459,0.00019399,2]
[346378043,1734924644628,-505.24242984,0.00019399,2]
[346378044,1734924644637,-500.0,0.00019399,2]
[346378045,1734924644646,-500.0,0.00019399,2]
[346378046,1734924644655,-500.0,0.00019399,2]
[346378047,1734924644664,-500.0,0.00019399,2]
[346378048,1734924644673,-150.86985593,0.00019399,2]
[346378049,1734924644682,-387.20080232,0.00019399,2]
[346378050,1734924644691,-500.99521009,0.00019399,2]
[346378051,1734924644700,-500.0,0.00019399,2]
[346378052,1734924644708,-500.0,0.00019399,2]
[346378053,1734924644719,-322.01190953,0.00019399,2]
[346378054,1734924644728,-500.0,0.00019399,2]
[346378055,1734924644737,-500.0,0.00019399,2]
[346378056,1734924644746,-500.0,0.00019399,2]
[346378057,1734924644755,-500.0,0.00019399,2]
[346378058,1734924644764,-505.65423985,0.00019399,2]
[346378059,1734924644774,-641.0721839,0.00019399,2]
[346378060,1734924644782,-500.0,0.00019399,2]
[346378061,1734924644791,-500.0,0.00019399,2]
[346378062,1734924644800,-500.0,0.00019399,2]
[346378063,1734924644809,-500.0,0.00019399,2]
[346378064,1734924644818,-500.0,0.00019399,2]
[346378065,1734924644830,-500.0,0.00019399,2]
[346378066,1734924644839,-500.0,0.00019399,2]
[346378067,1734924644849,-500.0,0.00019399,2]
[346378068,1734924644858,-503.15417037,0.00019399,2]
[346378069,1734924644867,-500.0,0.00019399,2]
[346378070,1734924644876,-500.0,0.00019399,2]
[346378071,1734924644885,-500.0,0.00019399,2]
[346378072,1734924644894,-1300.8,0.00019399,2]
[346378073,1734924644903,-672.51,0.00019399,2]
[346378074,1734924644912,-1216.01,0.00019399,2]
[346378075,1734924644920,-500.0,0.00019399,2]
[346378076,1734924644929,-500.0,0.00019399,2]
[346378077,1734924644938,-500.0,0.00019399,2]
[346378078,1734924644947,-500.0,0.00019399,2]
[346378079,1734924644956,-566.44,0.00019399,2]
[346378080,1734924644965,-500.0,0.00019399,2]
[346378081,1734924644974,-553.45,0.00019399,2]
[346378082,1734924644983,-753.77,0.00019399,2]
[346378083,1734924644991,-500.0,0.00019399,2]
[346378084,1734924645000,-500.0,0.00019399,2]
[346378085,1734924645009,-500.0,0.00019399,2]